Cogmind - Beta 10 X2 --- EXPLORER MODE // 2020.09.04 @ 21:14:57 // AFD2020/Player2 Player: Minty Result: Destroyed by as-59600 with Assembled Heavy Rifle Performance ------------- Evolutions (0) 0 Regions Visited (2) 400 Robots Destroyed (11) 55 Value Destroyed (42) 42 Prototype IDs (0) 0 Alien Tech Used (0) 0 Bonus (39) 39 TOTAL SCORE: 536 Bonus ------- Follower Combat Kills 39 Cogmind --------- Core Integrity 0/250 Matter 258/300 Energy 140/140 System Corruption 0% Temperature Cool (0) Movement Treading (160) Location -10/Mines Parts ------- > --- POWER (1) -------- Light Deuterium Engine > --- PROPULSION (2) --- Light Treads Light Treads > --- UTILITY (3) ------ Large Storage Unit Targeting Computer Targeting Computer > --- WEAPON (2) ------- Bore Cannon Mini Grenade Launcher > --- INVENTORY (10) --- Light Ion Engine Peak State ------------ > --- POWER ------------ Light Deuterium Engine > --- PROPULSION ------- Light Treads Light Treads > --- UTILITY ---------- Large Storage Unit Targeting Computer Targeting Computer > --- WEAPON ----------- Bore Cannon Mini Grenade Launcher > --- INVENTORY -------- Light Ion Engine [Rating: 15] Favorites ----------- Power Light Ion Engine Engine Light Ion Engine Propulsion Light Treads Treads Light Treads Utility Targeting Computer Storage Large Storage Unit Processor Targeting Computer Weapon EM Pulse Gun Energy Gun EM Pulse Gun Ballistic Cannon Bore Cannon Launcher Mini Grenade Launcher Build | -11 -10 -10 ------- Run | Scr Mat Min Slots Evolved 1 | . 1 . Power . | . . . Propulsion . | . . . Utility 1 | . 1 . Weapon . | . . . Parts Attached 11 | 7 1 3 Power 2 | 1 . 1 Engine 2 | 1 . 1 Core . | . . . Reactor . | . . . Propulsion 2 | 2 . . Treads 2 | 2 . . Leg . | . . . Wheel . | . . . Hover . | . . . Flight . | . . . Utility 3 | 2 1 . Device . | . . . Storage 1 | . 1 . Processor 2 | 2 . . Hackware . | . . . Protection . | . . . Artifact . | . . . Weapon 4 | 2 . 2 Energy Gun 2 | 2 . . Energy Cannon . | . . . Ballistic Gun . | . . . Ballistic Cannon 1 | . . 1 Launcher 1 | . . 1 Special Weapon . | . . . Impact Weapon . | . . . Slashing Weapon . | . . . Piercing Weapon . | . . . Special Melee Weapon . | . . . Unidentified Prototypes . | . . . Parts Lost 1 | . . 1 Power . | . . . Propulsion . | . . . Utility . | . . . Weapon 1 | . . 1 Highest Loss Streak 1 | . . 1 Average Slot Usage (%) 95 | . 93 97 Engine 12 | . 12 12 Treads 25 | . 25 25 Storage 8 | . 6 12 Processor 25 | . 25 25 Energy Gun 21 | . 25 15 Launcher 2 | . . 6 Naked Turns . | . . . Heaviest Build 31 | 7 23 31 Greatest Support 40 | 40 40 40 Greatest Overweight (x) . | . . . Average Overweight (x) . | . . . Largest Inventory Capacity 10 | 4 10 10 Average Capacity 7 | 4 7 10 Most Carried 4 | 4 3 1 Average Carried . | 2 . . Final Capacity 10 | 4 10 10 Final Carried 4 | 4 . 1 Class Distribution -------------------- 100% | Hacker-Mutant Dominant Class ---------------- Hacker-Mutant | -10/Materials Hacker-Mutant | -10/Mines Resources | -11 -10 -10 ----------- Run | Scr Mat Min Matter Collected 313 | 202 28 83 Remotely . | . . . Salvage Created 116 | . 40 76 Parts 3 | . 2 1 Haulers Intercepted . | . . . Recyclers Shooed . | . . . Parts Field Recycled . | . . . Retrieved Matter . | . . . Parts Self-Destructed . | . . . Prevented . | . . . Kills | -11 -10 -10 ------- Run | Scr Mat Min Combat Hostiles Destroyed 9 | . 2 7 Guns 4 | . 2 2 AOE 5 | . . 5 Classes Destroyed 4 | . 2 2 Recycler 1 | . . 1 Watcher 1 | . 1 . Swarmer 2 | . 2 . Assembled 7 | . . 7 Best Kill Streak 8 | . 2 8 Combat Bots Only 7 | . 2 7 Max Kills in Single Turn 3 | . 1 3 Gunslinging . | . . . Exploded 2 | . . 2 Melee . | . . . Uniques/NPCs Destroyed . | . . . Combat | -11 -10 -10 -------- Run | Scr Mat Min Damage Taken 271 | . 29 242 Core 24 | . 8 16 Absorbed by Shields . | . . . Core Remaining (%) 100 | 100 . . Volleys Fired 19 | . 7 12 Largest 2 | . 2 2 Hottest 90 | . 90 90 Shots Fired 33 | . 14 19 Gun 28 | . 14 14 Cannon . | . . . Launcher 5 | . . 5 Special . | . . . Kinetic . | . . . Thermal 9 | . 7 2 Explosive 5 | . . 5 Electromagnetic 19 | . 7 12 Robot Hit Streak 11 | . 3 11 Robot Miss Streak 1 | . 1 1 Penetration Max . | . . . Secondary Targets . | . . . Shots Hit Robots 24 | . 8 16 Core Hits 20 | . 3 17 Critical Hits . | . . . Critical Kills . | . . . Critical Parts Destroyed . | . . . Melee Attacks . | . . . Impact . | . . . Slashing . | . . . Piercing . | . . . Sneak Attacks . | . . . Combat Hostiles . | . . . Follow-up Attacks . | . . . Damage Inflicted 702 | 3 107 592 Guns 216 | . 68 148 Cannons . | . . . Explosions 483 | . 39 444 Melee . | . . . Ramming 3 | 3 . . Kinetic . | . . . Thermal 99 | . 75 24 Explosive 444 | . . 444 Electromagnetic 156 | . 32 124 Impact . | . . . Slashing . | . . . Piercing . | . . . Highest Corruption . | . . . Average Corruption . | . . . Corruption Purged . | . . . Overload Shots . | . . . Overflow Damage 2 | . . 2 Projectiles . | . . . Explosions 2 | . . 2 Melee . | . . . Knockbacks . | . . . Impact . | . . . Kinetic . | . . . Secondary . | . . . Self-Inflicted Damage 18 | . . 18 Shots 2 | . . 2 Rammed 1 | 1 . . Targets Rammed 1 | 1 . . Kicked . | . . . Crushed . | . . . Highest Temperature 120 | . 120 60 Average Temperature 39 | . 55 24 Received Heat Transfer . | . . . Siege Activations . | . . . Robots Corrupted . | . . . Combat Hostiles . | . . . Parts Fried . | . . . Impact Corruptions . | . . . Robots Melted . | . . . Combat Hostiles . | . . . Parts Melted 1 | . 1 . Heat Transferred 235 | . 161 74 Parts Sabotaged . | . . . Parts Stolen . | . . . Parts Stripped . | . . . Power Chain Reactions 1 | . 1 . Missiles Intercepted . | . . . Alert | -11 -10 -10 ------- Run | Scr Mat Min Peak Influence 60 | . 60 32 Average Influence 12 | . 17 15 Maximum Alert Level . | . . . Low Security (%) 100 | 100 100 100 Level 1 . | . . . Level 2 . | . . . Level 3 . | . . . Level 4 . | . . . Level 5 . | . . . High Security . | . . . Max Security . | . . . Squads Dispatched . | . . . Investigation . | . . . Extermination . | . . . Reinforcement . | . . . Assault . | . . . Garrison . | . . . Intercept . | . . . Construction Impeded . | . . . Haulers Reinforced . | . . . Stealth | -11 -10 -10 --------- Run | Scr Mat Min Distress Signals . | . . . Communications Jammed . | . . . Distress Signals . | . . . Times Spotted 15 | . 3 12 Peak Tracking Total 10 | . 2 10 Tactical Retreats 2 | . . 2 Traps | -11 -10 -10 ------- Run | Scr Mat Min Traps Triggered . | . . . Indirectly . | . . . Trap Hack Attempts . | . . . Triggered . | . . . Disarmed . | . . . Reprogrammed . | . . . Reused . | . . . Traps Extracted . | . . . Installed . | . . . Triggered . | . . . Machines | -11 -10 -10 ---------- Run | Scr Mat Min Machines Disabled . | . . . Max in Single Turn . | . . . Machines Sabotaged . | . . . Garrisons Compromised . | . . . Overloaded Fab Kills . | . . . Fab Network Shutdowns . | . . . Hacking | -11 -10 -10 --------- Run | Scr Mat Min Machines Accessed . | . . . Terminals . | . . . Fabricators . | . . . Repair Stations . | . . . Recycling Units . | . . . Scanalyzers . | . . . Garrison Access . | . . . Total Hacks . | . . . Successful . | . . . Failed . | . . . Catastrophic . | . . . Database Lockouts . | . . . Manual . | . . . Terminals . | . . . Fabricators . | . . . Repair Stations . | . . . Recycling Units . | . . . Scanalyzers . | . . . Garrison Access . | . . . Terminal Hacks . | . . . Fabricator Hacks . | . . . Repair Station Hacks . | . . . Recycling Unit Hacks . | . . . Scanalyzer . | . . . Garrison Access Hacks . | . . . Unauthorized Hacks . | . . . Terminals . | . . . Fabricators . | . . . Repair Stations . | . . . Recycling Units . | . . . Scanalyzers . | . . . Garrison Access . | . . . Data Cores Recovered . | . . . Used . | . . . Hacking Detections . | . . . Full Trace Events . | . . . Feedback Events . | . . . Feedback Blocked . | . . . Robot Schematics Acquired . | . . . Robots Built . | . . . Matter . | . . . Time . | . . . Total Robot Build Rating . | . . . Part Schematics Acquired . | . . . Parts Built . | . . . Matter . | . . . Time . | . . . Total Part Build Rating . | . . . Parts Repaired . | . . . Time . | . . . Parts Recycled . | . . . Recycled Matter . | . . . Retrieved Matter . | . . . Retrieved Components . | . . . Parts Scanalyzed . | . . . Part Schematics Acquired . | . . . Parts Damaged . | . . . Bothacking | -11 -10 -10 ------------ Run | Scr Mat Min Used RIF Installer . | . . . Robots Hacked . | . . . Non-combat . | . . . Combat . | . . . Robot Hacks Applied . | . . . Relay Couplers Released . | . . . Robots Rewired . | . . . Allies Hacked . | . . . Hacks Repelled . | . . . Allies | -11 -10 -10 -------- Run | Scr Mat Min Total Allies 1 | . 1 . Largest Group 1 | . 1 1 Highest-Rated Group 56 | . 56 56 Highest-Rated Ally 56 | . 56 56 Total Orders . | . . . Ally Attacks 17 | . 4 13 Total Damage 101 | . 14 87 Kills 1 | . . 1 Allies Corrupted . | . . . Allies Melted . | . . . Intel | -11 -10 -10 ------- Run | Scr Mat Min Robot Analysis Total . | . . . Derelict Logs Recovered . | . . . Drone Launches . | . . . Drone Recoveries . | . . . Exploration | -11 -10 -10 ------------- Run | Scr Mat Min Turns Passed 375 | 105 170 100 Spaces Moved 180 | 60 80 40 Core 7 | 7 . . Treads 173 | 53 80 40 Legs . | . . . Wheels . | . . . Hover . | . . . Flight . | . . . Fastest Speed 50 | 50 160 160 Average Speed 155 | 147 160 160 Slowest Speed 160 | 160 160 160 Overloaded Moves . | . . . Propulsion Burnouts . | . . . Robots Hopped . | . . . Cave-ins Triggered . | . . . Exploration Rate (%) 13 | 5 25 9 Regions Visited 2 Branch Regions 1 Pre-discovered Areas . | . . . Known Exits Taken 2 | 1 1 . Unknown Exits Taken . | . . . Scrap Searched . | . . . Spaces Dug . | . . . Terrain Destroyed 51 | . 3 48 Melee . | . . . Projectile . | . . . AOE 51 | . 3 48 Actions | -11 -10 -10 --------- Run | Scr Mat Min Total 239 | 73 110 56 Wait 21 | 2 19 . Move 178 | 59 79 40 Hop . | . . . Pick Up 4 | 4 . . Fast Attach 10 | 7 1 2 Attach . | . . . Detach . | . . . Swap 1 | . . 1 Drop 5 | . 4 1 Fire 19 | . 7 12 Melee . | . . . Ram . | . . . Kick . | . . . Crush 1 | 1 . . Escape Stasis . | . . . Rewire . | . . . Trap . | . . . Miscellaneous . | . . . Route ------- -11/Scrapyard -10/Materials -10/Mines History --------- Turn | Location | Event 3 | -11/Scrapyard | Identified exit to Materials 3 | -11/Scrapyard | Discovered exit to Materials (range 15) 106 | -11/Scrapyard | Entered Materials 106 | -10/Materials | Evolved 1 slot: Utility x1 249 | -10/Materials | Identified exit to Mines 249 | -10/Materials | Discovered exit to Mines (range 16) 276 | -10/Materials | Entered Mines 276 | -10/Mines | Accompanied by 1 ally 277 | -10/Mines | Assembled infested the area 282 | -10/Mines | Assisted by a Guerilla fighting off Assembled 301 | -10/Mines | Build established: Hacker-Mutant 316 | -10/Mines | Met a Derelict bent on vengeance 324 | -10/Mines | Core integrity fell below 50% 370 | -10/Mines | Core integrity fell below 20% 374 | -10/Mines | Destroyed 7 combat bots 376 | -10/Mines | Destroyed by as-59600 with Assembled Heavy Rifle Last Messages --------------- 00345_ R-06 Scavenger collects Fission Core. 00350_ as-91820 destroyed. 00350_ as-85477 destroyed. 00350_ R-06 Scavenger destroyed. 00353_ as-23241 destroyed. 00357_ The unstable cave ceiling collapses. 00357_ U-05 Engineer builds a Wall. 00360_ Acquired 1 matter. 00361_ U-05 Engineer lays Concrete. 00362_ U-05 Engineer builds a Wall. 00365_ Acquired 11 matter. 00367_ U-05 Engineer lays Concrete. 00369_ The unstable cave ceiling collapses. 00369_ U-05 Engineer builds a Wall. 00370_ Dropped EM Pulse Gun. 00370_ Acquired Bore Cannon. 00373_ U-05 Engineer lays Concrete. 00373_ Acquired 26 matter. 00374_ U-05 Engineer destroyed. 00376_ The unstable cave ceiling collapses. Map ----- +----------------------------------------------------+ | ?????????????????????????????????????????????????? | | ?????????????????????????????????????????????????? | | ?????????????????????????????????????????????????? | | ?????????????????????????????????????????????????? | | ?????????????????????????????????????????????????? | | ?????????????????????????????????????????????????? | | ?????????????????????????????????????????????????? | | ?????????????????????????????????????????????????? | | ?????????????????????????????????????????????????? | | ?????????????????????????????????????????????????? | | ?????????????????????????????????????????????????? | | ?????????????????????????????????????????????????? | | ?????????????????????????????????????????????????? | | ?????????????????????????????????????????????????? | | ?????????????????????????????????????????????????? | | ???????????????????####??????????????????????????? | | ??????????????????## ####???????????????????????? | | ??????????????????# ##??????????????????????? | | ????????????????### ####???????????????????? | | ???????????????## # #???????????????????? | | ???????????? ? t# ###??????????????????? | | ? ???? % %#??????????????????? | | ???? # # ###????????????????? | | ???????????# % % = ???????????????? | | ?????????? # #%###????????????????? | | ?????????? # @ #=###????????????????? | | ??????????# # [! ##???????????????? | | ?????????????# # # * = a% #???????????????? | | ??????????????# % = ## #???????????????? | | ??????????????# ##### # ##??#???????????????? | | ??????????????## % #???######???????????????????? | | ???????????????## ###????????????????????????????? | | ????????????????# #??????????????????????????????? | | ????????????????# #??????????????????????????????? | | ???????????????? #??????????????????????????????? | | ????????????????###??????????????????????????????? | | ?????????????????????????????????????????????????? | | ?????????????????????????????????????????????????? | | ?????????????????????????????????????????????????? | | ?????????????????????????????????????????????????? | | ?????????????????????????????????????????????????? | | ?????????????????????????????????????????????????? | | ?????????????????????????????????????????????????? | | ?????????????????????????????????????????????????? | | ?????????????????????????????????????????????????? | | ?????????????????????????????????????????????????? | | ?????????????????????????????????????????????????? | | ?????????????????????????????????????????????????? | | ?????????????????????????????????????????????????? | | ?????????????????????????????????????????????????? | +----------------------------------------------------+ Best States ------------- Heat Dissipation 25 Energy Generation 14 Energy Capacity 140 Matter Stores 300 Matter Capacity 300 Sight Range 16 Terrain Scan Density 10 Resistance: KI 35 Resistance: TH 35 Resistance: EX 35 Resistance: EM 35 Resistance: I 35 Resistance: S 35 Resistance: P 35 Evasion (%) 40 Targeting Accuracy 10 Recoil Reduction 2 Offensive Hacking 20 Item Schematics ----------------- None Robot Schematics ------------------ None Fabricated ------------ Nothing Alien Tech Used ----------------- None Achievements -------------- None Challenges ------------ None Player 2 | -11 -10 -10 ---------- Run | Scr Mat Min Slots Evolved . | . . . Power . | . . . Propulsion . | . . . Utility . | . . . Weapon . | . . . Parts Attached 7 | . 6 1 Parts Lost 5 | . . 5 Damage Taken 583 | . . 583 Core 228 | . . 228 Player 2/Cogmind (%) 90 | . . 93 Absorbed by Shields . | . . . Damage Inflicted 101 | . 14 87 Player 2/Cogmind (%) 12 | . 11 12 Combat Hostiles Destroyed 1 | . . 1 Player 2/Cogmind (%) 10 | . . 12 Game ------ Seed FlightDroneActivator Manual? 0 Play Time 00:05:35 Cumulative 263.6 hours Start 2020.09.04 @ 21:10:22 End 2020.09.04 @ 21:14:57 Sessions 1 Manual Loads 0 Difficulty Explorer Special Mode AFD2020/Player2 Game No. 150 Rogue 0 Adventurer 52 Explorer 98 Win Type - Total 15 Types 14/0/1/0/0/0/0 Lore% 59 Gallery% 84 Achievement% 60 Wizard Run 0 Options --------- ASCII 0 Keyboard 0 Movement Mouse Keybinds 0 Fullscreen 1 Font 18/Terminus Map View 76x50 Tactical HUD 1 Map Filters NONE Filters SATURATION(100) Steam 1 RUN: 6a3b713e-ee5f-4bf7-b909-f49c74cbc8eb